{"text_format":"1","workbook":"xlsx","n_sheets":3,"sheets":["Calendrier","Feuil2","Feuil3"],"not_rendered":{"charts":0,"images":0,"macros":1,"external_links":0,"defined_names":0,"comments":0,"pivot_tables":0},"unopened":[],"bounds":{"document_bytes":16777216,"sheet_cells":100000,"rows_first":2000,"rows_last":500,"rows_between":2000,"halvings":0,"cell_chars":16384,"cell_head_chars":4096},"cells_cut":0,"cells_raw":0,"read":"whole","date_system":"1900"}

{"sheet":"Calendrier","index":0,"n_rows":14,"n_cols":36,"rows_kept":14,"cut":false,"hidden":false,"merged":[]}
[]
["Classement",null,null,null,null,null,null,"J26",null,"J27",null,"J28",null,"J29",null,"J30",null,"J31",null,"J32",null,"J33",null,"J34",null,"J35",null,"J36",null,"J37",null,"J38"]
[12,{"$f":"INDEX($AI$3:$AI$10,MATCH(LARGE($AJ$3:$AJ$10,ROW()-2),$AJ$3:$AJ$10,0))","v":"Guingamp"},{"$f":"LARGE($AJ$3:$AJ$10,ROW()-2)","v":31.05},null,"Lorient\n6 dom / 7 ext","5  confrontatons\n4 dom / 1 ext",31,"à Nantes",null,"Guingamp",null,"à Troyes",null,"à Bastia",null,"Marseille",null,"à Angers",null,"Lyon",null,"à Caen",null,"Toulouse",null,"à Saint-Etienne",null,"Lille",null,"à Bordeaux",null,"Ajaccio",null,null,"Lorient",{"$f":"SUM(G3:AG3)+(ROW()/100)","v":31.03}]
[13,{"$f":"INDEX($AI$3:$AI$10,MATCH(LARGE($AJ$3:$AJ$10,ROW()-2),$AJ$3:$AJ$10,0))","v":"Lille"},{"$f":"LARGE($AJ$3:$AJ$10,ROW()-2)","v":31.04},null,"Guingamp\n7 dom / 6 ext","4 confrontations\n1 dom / 3 ext",31,"Bordeaux",null,"à Lorient",null,"Angers",null,"à Lyon",null,"Saint-Etienne",null,"à Reims",null,"Montpellier",null,"PSG",null,"à Rennes",null,"Caen",null,"à Monaco",null,"à Lille",null,"Nice",null,null,"Lille",{"$f":"SUM(G4:AG4)+(ROW()/100)","v":31.04}]
[14,"Lorient",31.03,null,"Bastia\n6 dom / 7ext","5 confrontations\n2 dom / 3 ext",31,"à Reims",null,"Nantes",null,"à Nice",null,"Lorient",null,"Lille",null,"à Bordeaux",null,"Marseille",null,"à Toulouse",null,"Saint-Etienne",null,"à Ajaccio",null,"à Caen",null,"Angers",null,"à Rennes",null,null,"Guingamp",31.05]
[15,"Bastia",30.06,null,"Lille\n6 dom / 7 ext","7 confrontations\n3 dom / 4ext",30,"à PSG",null,"Lyon",null,"à Montpellier",null,"Reims",null,"à Bastia",null,"Toulouse",null,"à Nantes",null,"Monaco",null,"à Ajaccio",null,"Angers",null,"à Lorient",null,"Guingamp",null,"à Saint-Etienne",null,null,"Bastia",30.06]
[16,"Reims",29.07,null,"Reims\n6 dom / 7 ext","4 confrontations\n3 dom / 1 ext",29,"Bastia",null,"à PSG",null,"Bordeaux",null,"à Lille",null,"à Monaco",null,"Guingamp",null,"à Rennes",null,"Nantes",null,"à Troyes",null,"à Nice",null,"Montpellier",null,"à Marseille",null,"Lyon",null,null,"Reims",29.07]
[17,"Ajaccio",27.08,null,"Ajaccio\n7 dom / 6 ext","4 confrontations\n2 dom / 2 ext",27,"Troyes",null,"à Toulouse",null,"Marseille",null,"à Bordeaux",null,"Caen",null,"à Nice",null,"Saint-Etienne",null,"à Angers",null,"Lille",null,"Bastia",null,"à Lyon",null,"PSG",null,"à Lorient",null,null,"Ajaccio",27.08]
[18,"Montpellier",26.09,null,"Montpellier\n6 dom / 7 ext","4 confrontations\n2 dom / 2ext",26,"Toulouse",null,"à Angers",null,"Lille",null,"à PSG",null,"Nice",null,"à Saint-Etienne",null,"à Guingamp",null,"Lyon",null,"à Nantes",null,"Troyes",null,"à Reims",null,"Rennes",null,"à Monaco",null,null,"Montpellier",26.09]
[19,"Toulouse",21.1,null,"Toulouse\n7 dom / 6 ext","5 confrontations\n2 dom / 3 ext",21,"à Montpellier",null,"Ajaccio",null,"Rennes",null,"à Marseille",null,"Bordeaux",null,"à Lille",null,"Caen",null,"Bastia",null,"à Lorient",null,"Lyon",null,"à Saint-Etienne",null,"Troyes",null,"à Angers",null,null,"Toulouse",21.1]
[]
[]
[]
[null,null,null,null,null,null,null,null,null,null,null,null,null,null,null,null,null,null,null,null,null,null,null,null,null,null,null,null,null,null,null,null,"   "]

{"sheet":"Feuil2","index":1,"n_rows":13,"n_cols":4,"rows_kept":13,"cut":false,"hidden":false,"merged":[]}
["Rang","Vendeur","CA HT","Com."]
[{"$f":"RANK(C2,$C$2:$C$6)","v":3},"Durand",4500,225]
[{"$f":"RANK(C3,$C$2:$C$6)","v":4},"Lebon",3456,173]
[2,"Martin",5674,284]
[1,"Rodriguez",6876,344]
[5,"Rouget",345,17]
[]
["Rang","Vendeur","CA HT","Com."]
[{"$f":" VLOOKUP($A9,$A$2:$D$6,2,FALSE)","v":0},"Durand",4500,225]
[{"$f":" VLOOKUP($A10,$A$2:$D$6,2,FALSE)","v":0},"Lebon",3456,173]
[0,"Martin",5674,284]
[0,"Rodriguez",6876,344]
[0,"Rouget",345,17]

{"sheet":"Feuil3","index":2,"n_rows":0,"n_cols":0,"rows_kept":0,"cut":false,"hidden":false,"merged":[]}